bitfinex/quotes_SOLUSD_20240921
["timestamp","ask_amount","ask_price","bid_price","bid_amount"]
[1726952287847,6.7669,147.78,147.74,7.0204903]
[1726952289180,22.8069,147.79,147.74,7.0204903]
[1726952297472,1.3486106,147.78,147.74,7.0204903]
[1726952297967,8.1155106,147.78,147.74,7.0204903]
[1726952302256,6.7669,147.78,147.74,7.0204903]
[1726952302451,8.1155106,147.78,147.74,7.0204903]
[1726952304191,6.7669,147.78,147.74,7.0204903]
[1726952304354,8.1155106,147.78,147.74,7.0204903]
[1726952308175,6.7669,147.78,147.74,7.0204903]
[1726952310387,8.1155106,147.78,147.74,7.0204903]
[1726952311181,6.7669,147.78,147.74,7.0204903]
[1726952316590,8.1155106,147.78,147.74,7.0204903]
[1726952318290,6.7669,147.78,147.74,7.0204903]
[1726952318992,8.1155106,147.78,147.74,7.0204903]
[1726952324474,0.12549,147.77,147.74,0.2520903]
[1726952324989,6.7678,147.76,147.74,0.2520903]
[1726952325491,6.89279,147.77,147.74,0.2520903]
[1726952327794,6.7668,147.78,147.74,0.2520903]
[1726952328695,6.7668,147.78,147.74,7.0206903]
[1726952329901,22.1407,147.79,147.74,7.0206903]
[1726952329902,6.7664,147.79,147.74,7.0206903]
[1726952332601,6.7668,147.78,147.74,7.0206903]
[1726952333404,6.7668,147.78,147.74,0.2520903]
[1726952338302,6.7674,147.77,147.74,0.2520903]
[1726952365900,6.7679,147.76,147.74,0.2520903]
[1726952380523,6.7673,147.77,147.74,0.2520903]
[1726952382141,6.7664,147.79,147.75,6.7681]
[1726952382431,6.7664,147.79,147.76,1.2336079]
[1726952389132,6.7664,147.79,147.75,6.7681]
[1726952389336,6.7664,147.79,147.76,25.13012275]
[1726952390838,6.7664,147.79,147.76,23.776884]
[1726952395343,6.7664,147.79,147.75,23.776884]
[1726952398241,6.7671,147.78,147.75,23.776884]
[1726952398845,6.7676,147.77,147.74,0.2520903]
[1726952400528,6.7676,147.77,147.74,24.0289743]
[1726952406341,6.766,147.8,147.76,23.776884]
[1726952408226,6.7664,147.79,147.76,23.776884]
[1726952409127,6.7668,147.78,147.75,23.776884]
[1726952410736,6.7668,147.78,147.74,0.2520903]
[1726952410939,6.7674,147.77,147.74,24.0289743]
[1726952411262,6.7674,147.77,147.74,0.2520903]
[1726952414740,6.7681,147.75,147.74,0.2520903]
[1726952416453,6.7691,147.73,147.7,16.6775903]
[1726952417067,6.7687,147.74,147.7,16.6775903]
[1726952417561,6.7687,147.74,147.7,16.1775903]
[1726952426943,6.7692,147.73,147.69,7.0228903]
[1726952427952,6.7696,147.72,147.69,0.2520903]
[1726952428147,6.7701,147.71,147.69,0.2520903]
[1726952435266,6.7696,147.72,147.69,0.2520903]
[1726952438670,8.24907331,147.77,147.7,23.776884]
[1726952438850,7.07014213,147.77,147.73,16.9221]
[1726952439051,16.4289,147.81,147.74,23.776884]
[1726952439258,16.4289,147.81,147.75,6.7681]
[1726952439259,6.7662,147.8,147.75,6.7681]
[1726952439455,6.7662,147.8,147.74,23.776884]
[1726952439456,6.7662,147.8,147.76,6.7677]
[1726952439655,6.7654,147.81,147.76,23.776884]
[1726952440799,6.7654,147.81,147.76,30.544484]
[1726952477797,7.06751747,147.83,147.8,23.776884]
[1726952478107,0.2520903,147.85,147.82,23.776884]
[1726952478284,0.2520903,147.85,147.84,23.776884]
[1726952479285,0.2520903,147.85,147.84,6.764]
[1726952479488,0.2520903,147.85,147.84,31.54372977]
[1726952481107,0.2520903,147.85,147.84,30.540884]
[1726952481401,0.2520903,147.85,147.84,23.776884]
[1726952492992,0.2520903,147.85,147.84,30.540884]
[1726952495726,0.2520903,147.85,147.84,31.34398776]
[1726952496316,0.2520903,147.85,147.84,31.89330269]
[1726952496716,0.2520903,147.85,147.84,30.540884]
[1726952497221,0.2520903,147.85,147.84,46.127674]
[1726952498828,0.2520903,147.85,147.84,46.002184]
[1726952500916,0.2520903,147.85,147.84,47.35450721]
[1726952501321,0.2520903,147.85,147.84,46.002184]
[1726952506929,0.2520903,147.85,147.84,47.35451085]
[1726952507416,0.2520903,147.85,147.84,46.002184]
[1726952510130,0.2520903,147.85,147.84,47.35226018]
[1726952510926,0.2520903,147.85,147.84,46.002184]
[1726952515726,0.2520903,147.85,147.8,33.2912]
[1726952515941,0.2520903,147.85,147.81,20.0]
[1726952516115,0.2520903,147.85,147.83,6.7644]
[1726952517128,0.2520903,147.85,147.84,23.776884]
[1726952520919,0.2520903,147.85,147.82,23.6767]
[1726952521117,0.2520903,147.85,147.83,23.776884]
[1726952522141,0.2520903,147.85,147.83,30.541284]
[1726952524125,0.2520903,147.85,147.83,23.776884]
[1726952525120,0.2520903,147.85,147.83,30.541284]
[1726952535566,0.2520903,147.85,147.84,25.12943975]
[1726952535733,0.2520903,147.85,147.84,31.89343975]
[1726952536255,0.2520903,147.85,147.84,30.540884]
[1726952545766,0.2520903,147.85,147.83,6.7644]
[1726952551845,0.2520903,147.85,147.84,6.764]
[1726952552067,0.2520903,147.85,147.84,30.540884]
[1726952566381,0.2520903,147.85,147.84,31.89340698]
[1726952567375,0.2520903,147.85,147.84,30.540884]
[1726952590097,0.2520903,147.85,147.84,31.89332973]
[1726952590677,0.2520903,147.85,147.84,30.540884]
[1726952597105,0.2520903,147.85,147.84,31.81480498]
[1726952600010,0.2520903,147.85,147.84,31.94029498]
[1726952600210,0.2520903,147.85,147.84,30.666374]
[1726952612097,0.2520903,147.85,147.84,30.791864]
[1726952631738,0.2520903,147.85,147.82,16.9119]
[1726952631917,0.2520903,147.85,147.84,6.764]
[1726952633140,0.2520903,147.85,147.84,30.540884]
[1726952635033,0.2520903,147.85,147.83,30.541284]
[1726952638147,0.2520903,147.85,147.84,6.764]
[1726952638649,0.2520903,147.85,147.84,30.540884]
[1726952643843,0.2520903,147.85,147.82,16.9119]
[1726952644250,0.2520903,147.85,147.83,6.7644]
[1726952645126,0.2520903,147.85,147.84,23.776884]
[1726952645354,0.2520903,147.85,147.82,23.6767]
[1726952645724,0.2520903,147.85,147.82,16.9119]
[1726952645930,7.0156903,147.85,147.82,16.9119]
[1726952646952,7.0156903,147.85,147.81,6.7653]
[1726952650160,0.2520903,147.85,147.81,6.7653]
[1726952651055,0.2520903,147.85,147.82,1.35283888]
[1726952651238,0.2520903,147.85,147.81,6.7653]
[1726952651639,0.2520903,147.85,147.82,0.71014514]
[1726952651980,0.2520903,147.85,147.82,6.7648]
[1726952660558,0.2520903,147.85,147.84,6.764]
[1726952660740,0.2520903,147.85,147.84,30.540884]
[1726952675161,0.2520903,147.85,147.84,31.35480951]
[1726952675561,0.2520903,147.85,147.84,30.540884]
[1726952677669,0.2520903,147.85,147.84,64.45698988]
[1726952680975,0.2520903,147.85,147.84,64.45679173]
[1726952681366,0.2520903,147.85,147.84,63.10456823]
[1726952692855,0.2520903,147.85,147.84,50.791864]
[1726952694382,0.2520903,147.85,147.84,30.540884]
[1726952694682,0.2520903,147.85,147.84,6.764]
[1726952694862,0.2520903,147.85,147.84,8.11635394]
[1726952695666,0.2520903,147.85,147.84,32.14421794]
[1726952696863,0.2520903,147.85,147.84,30.791864]
[1726952701789,0.2520903,147.85,147.84,30.666374]
[1726952702006,0.2520903,147.85,147.84,30.791864]
[1726952706400,0.2520903,147.89,147.88,57.4788]
[1726952706598,0.2520903,147.89,147.88,90.04248423]
[1726952706771,0.2520903,147.89,147.88,91.32160438]
[1726952708598,0.2520903,147.89,147.88,115.09848838]
[1726952711893,0.2520903,147.89,147.88,113.81936823]
[1726952712786,0.2520903,147.89,147.88,93.81936823]
[1726952713176,0.2520903,147.89,147.88,113.81936823]
[1726952713597,0.2520903,147.89,147.88,115.17109295]
[1726952718503,0.2520903,147.89,147.88,113.81936823]
[1726952719414,0.2520903,147.89,147.88,115.17098976]
[1726952720211,0.2520903,147.89,147.88,113.81936823]
[1726952724905,0.2520903,147.89,147.88,124.41352525]
[1726952725690,0.2520903,147.89,147.88,113.81936823]
[1726952734406,0.4195793,147.95,147.94,23.6581]
[1726952734722,0.4195793,147.95,147.94,47.434984]
[1726952736198,0.4195793,147.95,147.94,47.685964]
[1726952738126,0.4195793,147.95,147.94,47.434984]
[1726952740012,0.4195793,147.95,147.94,59.99866823]
[1726952740225,0.4195793,147.95,147.94,60.96293141]
[1726952740424,0.4195793,147.95,147.94,59.99866823]
[1726952741231,0.4195793,147.95,147.94,60.9625781]
[1726952741613,0.4195793,147.95,147.94,61.35006134]
[1726952742012,0.4195793,147.95,147.94,59.99866823]
[1726952745425,0.4195793,147.95,147.94,47.560474]
[1726952745629,0.4195793,147.95,147.94,47.434984]
[1726952747235,0.4195793,147.95,147.94,16.8987]
[1726952753120,0.4195793,147.95,147.92,6.7603]
[1726952768642,0.4195793,147.95,147.88,41.22538323]
[1726952768643,15.9289793,147.95,147.88,41.22538323]
[1726952768943,15.9289793,147.95,147.88,33.8111]
[1726952769739,15.9289793,147.95,147.9,16.9028]
[1726952770048,22.6880793,147.95,147.91,6.7608]
[1726952771030,8.1082106,147.94,147.9,16.9028]
[1726952771748,6.7596,147.94,147.9,16.9028]
[1726952772342,6.7596,147.94,147.9,23.6639]
[1726952778623,8.1082106,147.94,147.9,23.6639]
[1726952779749,6.7596,147.94,147.9,23.6639]
[1726952782943,17.2775899,147.95,147.87,16.906]
[1726952782944,14.2430106,147.93,147.87,16.906]
[1726952784037,12.8944,147.93,147.87,16.906]
[1726952784322,12.8944,147.93,147.88,6.7619]
[1726952787540,6.7605,147.92,147.88,6.7619]
[1726952792741,8.1096106,147.91,147.87,23.6686]
[1726952792930,6.761,147.91,147.87,23.6686]
[1726952798643,6.7613,147.9,147.87,16.906]
[1726952817363,6.7613,147.9,147.85,6.7635]
[1726952817865,6.7618,147.89,147.85,6.7635]
[1726952820855,6.7618,147.89,147.86,0.54718897]
[1726952821174,6.7618,147.89,147.86,1.35244555]
[1726952821363,6.7618,147.89,147.85,6.7635]
[1726952843281,6.7614,147.9,147.86,1.35245532]
[1726952848883,6.7614,147.9,147.85,6.7635]
[1726952853486,23.2272,147.91,147.87,6.7626]
[1726952853685,7.06211182,147.92,147.9,6.7612]
[1726952853889,23.1169793,147.95,147.9,6.7612]
[1726952856012,6.7595,147.94,147.9,6.7612]
[1726952880525,6.7595,147.94,147.89,6.7616]
[1726952881230,1.3486106,147.93,147.88,23.6672]
[1726952882404,6.7605,147.92,147.88,23.6672]
[1726952889734,6.7605,147.92,147.89,1.35218362]
[1726952890237,6.7605,147.92,147.88,23.6672]
[1726952891538,6.76,147.93,147.89,1.35218436]
[1726952892012,6.76,147.93,147.88,23.6672]
[1726952895142,6.2786,147.92,147.85,16.9084]
[1726952895451,6.2786,147.92,147.79,31.9354]
[1726952895452,24.027864,147.88,147.79,31.9354]
[1726952895618,1.3486106,147.87,147.79,31.9354]
[1726952896241,23.902374,147.86,147.78,0.2520903]
[1726952896545,1.3486106,147.85,147.78,0.2520903]
[1726952897341,6.765,147.82,147.78,0.2520903]
[1726952897649,6.7646,147.83,147.78,8.37194678]
[1726952897942,6.7646,147.83,147.78,7.0187903]
[1726952899342,6.7639,147.85,147.8,6.7658]
[1726952899549,6.63299,147.87,147.78,0.2520903]
[1726952899733,6.88819,147.87,147.82,23.6761]
[1726952899930,8.1117106,147.86,147.82,16.9116]
[1726952901030,6.7631,147.86,147.82,16.9116]
[1726952902029,1.3486106,147.85,147.82,16.9116]
[1726952904731,8.1122106,147.85,147.8,6.7658]
[1726952904929,1.3486106,147.84,147.8,6.7658]
[1726952905424,8.1128106,147.84,147.79,23.6815]
[1726952905629,1.3486106,147.83,147.79,23.6815]
[1726952907234,8.1132106,147.83,147.79,16.9153]
[1726952907427,1.3486106,147.82,147.79,16.9153]
[1726952909731,8.1136106,147.82,147.79,16.9153]
[1726952910240,6.765,147.82,147.79,16.9153]
[1726952912355,8.1140106,147.81,147.78,0.2520903]
[1726952912649,8.1146106,147.8,147.78,0.2520903]
[1726952912842,8.1149106,147.79,147.78,0.2520903]
[1726952913165,6.7663,147.79,147.78,0.2520903]
[1726952913638,6.766,147.8,147.78,0.2520903]
[1726952913833,1.3486106,147.79,147.78,0.2520903]
[1726952923059,8.1149106,147.79,147.78,0.2520903]
[1726952923253,6.7663,147.79,147.78,0.2520903]
[1726952926952,8.1149106,147.79,147.78,0.2520903]
[1726952930467,1.3486106,147.79,147.74,0.2520903]
[1726952930670,6.7677,147.76,147.74,0.2520903]
[1726952931173,1.3486106,147.75,147.74,0.2520903]
[1726952932353,1.3486106,147.75,147.69,0.2520903]
[1726952932354,24.027864,147.74,147.69,0.2520903]
[1726952932551,1.3486106,147.73,147.69,0.2520903]
[1726952932870,6.7686,147.74,147.69,7.0229903]
[1726952933049,1.3486106,147.73,147.69,7.0229903]
[1726952933249,1.3486106,147.73,147.69,0.2520903]
[1726952934449,23.902374,147.78,147.69,0.2520903]
[1726952934968,6.7682,147.75,147.69,7.0224903]
[1726952935272,6.7682,147.75,147.7,6.7703]
[1726952935975,1.3486106,147.74,147.7,6.7703]
[1726952938275,6.7682,147.75,147.7,6.7703]
[1726952940380,1.3486106,147.74,147.7,6.7703]
[1726952940669,8.1175106,147.74,147.69,6.5228903]
[1726952941458,6.7689,147.74,147.69,6.5228903]
[1726952941684,1.3486106,147.73,147.69,6.0228903]
[1726952944474,8.1178106,147.73,147.68,39.1004]
[1726952944678,1.3486106,147.72,147.69,6.7708]
[1726952947581,8.1182106,147.72,147.68,39.1005]
[1726952947784,1.3486106,147.71,147.68,39.1005]
[1726952948688,6.7696,147.72,147.68,39.1005]
[1726952949387,1.3486106,147.71,147.68,39.1005]
[1726952950390,1.3486106,147.71,147.68,23.6987]
[1726952951977,1.3486106,147.71,147.67,6.7717]
[1726952952201,16.9222,147.74,147.67,6.7717]
[1726952952202,1.3486106,147.73,147.67,6.7717]
[1726952953188,6.7696,147.72,147.67,6.7717]
[1726952953384,1.3486106,147.71,147.67,6.7717]
[1726952953599,6.7708,147.7,147.65,39.8674]
[1726952953770,8.1197106,147.69,147.65,23.7041]
[1726952954105,1.3486106,147.68,147.65,23.7041]
[1726952954588,8.1200106,147.68,147.64,0.3519882]
[1726952954789,6.7714,147.68,147.64,0.3519882]
[1726952955595,6.7708,147.7,147.64,17.2842882]
[1726952956373,6.7708,147.7,147.65,6.7723]
[1726952956374,1.3486106,147.69,147.65,6.7723]
[1726952964500,6.7708,147.7,147.66,6.7722]
[1726952965777,1.3486106,147.69,147.66,6.7722]
[1726952970791,1.3486106,147.69,147.65,6.7726]
[1726952971186,8.1196106,147.69,147.65,6.7726]
[1726952971586,8.1196106,147.69,147.64,24.0573882]
[1726952972197,6.7705,147.7,147.65,6.7724]
[1726952972396,1.3486106,147.69,147.65,6.7724]
[1726952973284,1.5995906,147.68,147.64,0.3519882]
[1726952974314,6.7727,147.65,147.64,0.3519882]
[1726952975697,22.6609,147.69,147.64,0.3519882]
[1726952976815,6.7718,147.67,147.64,0.3519882]
[1726952979402,8.1210106,147.66,147.64,0.3519882]
[1726952980510,1.3486106,147.65,147.64,0.3519882]
[1726952991845,8.1213106,147.65,147.64,0.3519882]
[1726952992142,6.7727,147.65,147.64,0.3519882]
[1726952992338,6.89779,147.66,147.64,0.3519882]
[1726952993422,6.7723,147.66,147.64,0.3519882]
[1726952994240,6.7719,147.67,147.64,0.3519882]
[1726952998955,6.7727,147.65,147.64,0.3519882]
[1726952999941,8.1210106,147.66,147.64,0.3519882]
[1726953005954,6.7724,147.66,147.64,0.3519882]
[1726953007049,1.3486106,147.65,147.64,0.3519882]
[1726953009030,6.7724,147.66,147.64,0.3519882]
[1726953009768,1.3486106,147.65,147.64,0.3519882]
[1726953010653,6.89739,147.67,147.64,0.3519882]
[1726953010830,7.17267531,147.68,147.64,0.3519882]
[1726953011033,7.04718531,147.68,147.64,0.3519882]
[1726953011347,1.3486106,147.67,147.66,6.7723]
[1726953011553,1.3486106,147.69,147.66,6.7723]
[1726953012127,1.3486106,147.69,147.65,6.7726]
[1726953021660,8.1195106,147.69,147.65,6.7726]
[1726953023051,8.1195106,147.69,147.64,24.0575882]
[1726953023257,6.7715,147.68,147.64,17.2844882]
[1726953023556,1.3486106,147.67,147.64,17.2844882]
[1726953025347,6.7715,147.68,147.64,17.2844882]
[1726953026069,13.93954343,147.7,147.66,6.7722]
[1726953026259,13.93954343,147.7,147.65,6.7727]
[1726953027276,6.771,147.69,147.65,6.7727]
[1726953029467,1.3486106,147.68,147.65,6.7727]
[1726953031046,6.771,147.69,147.65,6.7727]
[1726953033952,1.3486106,147.68,147.65,6.7727]
[1726953034971,1.3486106,147.68,147.64,24.0575882]
[1726953045279,8.1200106,147.68,147.64,24.0575882]
[1726953049082,6.771,147.69,147.64,24.0575882]
[1726953053472,1.3486106,147.68,147.64,24.0575882]
[1726953055401,6.771,147.69,147.64,24.0575882]
[1726953056272,1.3486106,147.68,147.64,23.5575882]
[1726953064608,7.04345343,147.7,147.69,6.7709]
[1726953064800,7.0198903,147.76,147.68,18.28172127]
[1726953065119,7.0198903,147.76,147.73,6.769]
[1726953065120,0.2520903,147.76,147.73,6.769]
[1726953065286,0.2520903,147.76,147.72,6.7694]
[1726953066598,6.7686,147.75,147.7,23.6955]
[1726953066813,1.3486106,147.74,147.7,23.6955]
[1726953067429,6.7686,147.75,147.7,23.6955]
[1726953073220,6.7686,147.75,147.59,17.74926034]
[1726953073221,6.771,147.69,147.64,6.7728]
[1726953073428,6.7696,147.72,147.67,6.7717]
[1726953073627,6.77,147.71,147.66,6.7722]
[1726953073918,8.1186106,147.71,147.66,6.7722]
[1726953074706,1.3486106,147.7,147.66,6.7722]
[1726953078323,1.3486106,147.7,147.67,6.7718]
[1726953081024,6.77,147.71,147.67,6.7718]
[1726953082342,1.3486106,147.7,147.67,6.7718]
[1726953082833,6.77,147.71,147.67,6.7718]
[1726953083728,6.7696,147.72,147.67,6.7718]
[1726953085929,1.3486106,147.71,147.67,6.7718]
[1726953086523,1.3486106,147.71,147.65,16.9312]
[1726953086930,6.7712,147.69,147.65,16.9312]
[1726953087634,6.7712,147.69,147.65,23.7038]
[1726953088823,7.05433079,147.71,147.66,8.12659507]
[1726953089032,22.9327,147.72,147.66,6.7722]
[1726953090518,6.7701,147.71,147.66,6.7722]
[1726953098834,7.05362203,147.74,147.68,6.7709]
[1726953099629,1.3486106,147.73,147.67,16.9291]
[1726953100738,6.7701,147.71,147.67,16.9291]
[1726953100940,1.3486106,147.7,147.67,16.9291]
[1726953101528,6.7701,147.71,147.67,16.9291]
[1726953105248,1.3486106,147.7,147.67,16.9291]
[1726953105537,8.1191106,147.7,147.67,16.9291]
[1726953105740,6.7705,147.7,147.67,16.9291]
[1726953106348,6.77,147.71,147.67,16.9291]
[1726953107448,6.7696,147.72,147.67,16.9291]
[1726953107629,6.7696,147.72,147.67,23.7008]
[1726953120526,1.3486106,147.71,147.67,23.7008]
[1726953121043,8.1182106,147.72,147.67,23.7008]
[1726953121846,6.7696,147.72,147.67,23.7008]
[1726953134470,6.7696,147.72,147.68,21.8496]
[1726953134669,7.05362203,147.74,147.7,6.7703]
[1726953134966,6.7683,147.75,147.71,8.12374613]
[1726953135890,6.7683,147.75,147.71,6.7699]
[1726953141876,6.7683,147.75,147.7,6.7703]
[1726953143865,0.2520903,147.76,147.73,22.4577]
[1726953144050,0.2520903,147.76,147.74,1.35356445]
[1726953145766,0.2520903,147.76,147.73,22.4577]
[1726953152490,0.2520903,147.76,147.69,24.027864]
[1726953152491,6.7686,147.74,147.69,33.337]
[1726953153484,6.7686,147.74,147.7,6.7704]
[1726953154986,6.7682,147.75,147.71,6.7699]
[1726953158481,7.0198903,147.76,147.72,1.35382772]
[1726953158677,7.0198903,147.76,147.71,6.7699]
[1726953173089,6.7682,147.75,147.7,6.7704]
[1726953173292,8.1168106,147.75,147.7,6.7704]
[1726953173784,1.3486106,147.75,147.69,33.337]
[1726953174493,6.7696,147.72,147.69,16.4103]
[1726953174794,8.35607511,147.75,147.66,16.93]
[1726953174795,6.77,147.71,147.67,6.7718]
[1726953177590,6.7696,147.72,147.67,6.7718]
[1726953184904,6.7691,147.73,147.68,1.3541016]
[1726953185412,6.7691,147.73,147.69,6.7709]
[1726953185587,6.7687,147.74,147.69,6.7709]
[1726953187101,6.7692,147.73,147.69,6.7709]
[1726953187689,7.00746451,147.75,147.7,6.7704]
[1726953187887,7.00746451,147.75,147.71,8.12372312]
[1726953188093,7.0198903,147.76,147.71,6.7699]
[1726953188893,7.0198903,147.76,147.72,6.7695]
[1726953189286,6.7678,147.76,147.72,6.7695]
[1726953189492,6.9782648,147.76,147.72,6.7695]
[1726953192615,1.3486106,147.75,147.69,15.1277]
[1726953192822,6.7694,147.73,147.69,21.8985]
[1726953193800,6.7687,147.74,147.69,21.8985]
[1726953194813,6.7683,147.75,147.7,1.35391438]
[1726953195509,6.7683,147.75,147.69,32.0543]
[1726953196409,6.7683,147.75,147.71,6.7699]
[1726953199899,6.7683,147.75,147.72,1.35380265]
[1726953200405,0.2104648,147.76,147.72,1.35380265]
[1726953200406,6.9782648,147.76,147.72,1.35380265]
[1726953201420,0.2104648,147.76,147.72,1.35380265]
[1726953202293,0.2104648,147.76,147.73,53.01188823]
[1726953202600,0.2104648,147.76,147.75,30.544984]
[1726953203821,0.2104648,147.76,147.75,31.8982267]
[1726953204899,0.2104648,147.76,147.75,30.544984]
[1726953209622,0.2104648,147.76,147.75,31.2075484]
[1726953210004,0.2104648,147.76,147.75,31.89821987]
[1726953210627,0.2104648,147.76,147.75,30.544984]
[1726953214429,0.2104648,147.76,147.75,63.10866823]
[1726953214733,0.2104648,147.76,147.75,64.46190322]
[1726953215104,0.2104648,147.76,147.75,30.544984]
[1726953234525,0.2104648,147.76,147.75,31.89821974]
[1726953236249,0.2104648,147.76,147.75,32.14919878]
[1726953236929,0.2104648,147.76,147.75,30.795964]
[1726953238144,0.2104648,147.76,147.75,32.14906992]
[1726953240432,0.2104648,147.76,147.75,44.46177415]
[1726953240639,0.2104648,147.76,147.75,43.10866823]
[1726953240958,0.2104648,147.76,147.75,63.10866823]
[1726953241952,0.2104648,147.76,147.75,64.46154821]
[1726953247170,6.48e-05,147.76,147.75,72.33165961]
[1726953247482,6.48e-05,147.76,147.75,94.20545961]
[1726953251362,0.2525572,147.8,147.75,94.20545961]
[1726953251363,0.2525572,147.8,147.79,77.76478]
[1726953251560,0.2525572,147.8,147.79,91.4299391]
[1726953253462,0.2525572,147.8,147.79,115.2068231]
[1726953254141,0.2525572,147.8,147.79,130.6439231]
[1726953255051,0.2525572,147.8,147.79,137.0806231]
[1726953255256,0.2525572,147.8,147.79,135.72816823]
[1726953261862,0.2525572,147.8,147.79,116.978764]
[1726953262064,0.2525572,147.8,147.79,129.29146823]
[1726953262375,0.2525572,147.8,147.79,77.5138]
[1726953263264,0.2525572,147.8,147.79,57.5138]
[1726953263867,0.2525572,147.8,147.79,81.541664]
[1726953270490,0.2525572,147.8,147.79,47.458984]
[1726953270683,0.2525572,147.8,147.79,23.6821]
[1726953271967,0.2525572,147.8,147.79,47.458984]
[1726953282298,0.2525572,147.8,147.77,6.7668]
[1726953286902,0.2525572,147.8,147.78,6.7667]
[1726953299410,7.0184572,147.8,147.76,23.6865]
[1726953299920,0.2525572,147.8,147.74,6.7682]
[1726953300124,6.7664,147.79,147.74,6.7682]
[1726953301503,6.7664,147.79,147.75,30.544984]
[1726953302813,6.7664,147.79,147.75,23.776884]
[1726953303009,6.7664,147.79,147.74,30.545484]
[1726953305507,6.7664,147.79,147.75,6.7681]
[1726953310427,6.768,147.76,147.71,26.7699]
[1726953310607,15.6119,147.78,147.71,20.0]
[1726953311020,6.7673,147.77,147.72,6.7691]
[1726953313622,6.7679,147.76,147.71,6.7699]
[1726953316131,15.6119,147.78,147.71,23.776884]
[1726953316428,15.6119,147.78,147.75,6.7681]
[1726953316609,15.6119,147.78,147.76,1.35340264]
[1726953317553,15.6119,147.78,147.75,1.35340264]
[1726953322651,6.7664,147.79,147.75,8.12150264]
[1726953323630,0.2525572,147.8,147.75,8.12150264]
[1726953323631,0.2525572,147.8,147.76,40.695584]
[1726953323829,0.2525572,147.8,147.77,1.35306664]
[1726953324327,0.2525572,147.8,147.78,6.7666]
[1726953324529,0.2525572,147.8,147.79,31.89621658]
[1726953324742,0.2525572,147.8,147.79,32.14719658]
[1726953324911,0.2525572,147.8,147.79,44.45990081]
[1726953325524,0.2525572,147.8,147.79,43.10686823]
[1726953328424,0.2525572,147.8,147.79,30.794164]
[1726953333119,0.2525572,147.8,147.79,44.45955763]
[1726953333313,0.2525572,147.8,147.79,43.10686823]
[1726953334839,0.2525572,147.8,147.79,63.10686823]
[1726953341341,0.2525572,147.8,147.79,64.45944204]
[1726953341544,0.2525572,147.8,147.79,63.10686823]
[1726953349942,0.2525572,147.8,147.79,43.10686823]
[1726953350123,0.2525572,147.8,147.79,63.10686823]
[1726953355073,0.0998979,147.86,147.83,57.4984]
[1726953355245,0.0998979,147.86,147.83,113.83896823]
[1726953364536,0.0998979,147.86,147.83,101.526264]
[1726953364736,0.0998979,147.86,147.83,23.6758]
[1726953366163,0.0998979,147.86,147.83,47.452684]
[1726953368954,0.0998979,147.86,147.83,40.688184]
[1726953371059,0.0998979,147.86,147.83,47.452684]
[1726953375763,0.0998979,147.86,147.83,23.6758]
[1726953382075,1.4485085,147.86,147.8,16.9142]
[1726953382270,6.7639,147.85,147.8,16.9142]
[1726953383261,6.7639,147.85,147.8,23.68]
[1726953384674,6.7639,147.85,147.81,6.7654]
[1726953385361,0.0998979,147.86,147.82,6.7649]
[1726953386370,0.0998979,147.86,147.83,8.11738151]
[1726953392604,0.0998979,147.86,147.83,31.89426551]
[1726953394373,0.0998979,147.86,147.83,32.14524551]
[1726953395160,0.0998979,147.86,147.83,30.792364]
[1726953398892,0.0998979,147.86,147.83,63.10506823]
[1726953404284,0.0998979,147.86,147.83,50.792364]
[1726953410982,0.0998979,147.86,147.83,30.541384]
[1726953411503,0.0998979,147.86,147.83,36.75477847]
[1726953411687,0.0998979,147.86,147.83,12.97789447]
[1726953413004,0.0998979,147.86,147.83,36.75477847]
[1726953414209,0.0998979,147.86,147.83,30.541384]
[1726953414388,0.0998979,147.86,147.83,36.75521886]
[1726953415210,1.4485085,147.86,147.83,6.21383486]
[1726953416490,0.0998979,147.86,147.83,6.21383486]
[1726953417388,0.0998979,147.86,147.82,23.6766]
[1726953417585,0.0998979,147.86,147.83,6.2145239]
[1726953426327,1.3486106,147.85,147.83,6.2145239]
[1726953427002,1.3486106,147.85,147.83,6.21954889]
[1726953427195,0.0998979,147.86,147.83,6.21954889]
[1726953427411,7.0165572,147.84,147.83,6.21954889]
[1726953429323,6.7659,147.8,147.76,23.6863]
[1726953429536,6.765,147.82,147.76,16.9187]
[1726953429903,1.3486106,147.81,147.76,16.9187]
[1726953430419,1.3486106,147.81,147.77,6.7672]